fUSD/lending_fUSD_20251225
["ID","MTS","AMOUNT","RATE_DAILY","PERIOD"]
[399743507,1766652646596,-172.12623375,0.00016266,2]
[399743508,1766652646606,-207.98052348,0.00016266,2]
[399743509,1766652646617,-299.35190735,0.00016266,2]
[399743510,1766652646627,-150.03943629,0.00016266,2]
[399743511,1766652646637,-150.0,0.00016268,2]
[399743512,1766652646647,-150.0,0.00016269,2]
[399743513,1766652646657,-150.0,0.00016271,2]
[399743514,1766652646667,-150.0,0.00016274,2]
[399743515,1766652646676,-150.0,0.00016279,2]
[399743516,1766652646687,-1151.5825063,0.00016282,2]
[399743517,1766652646697,-8491.85784414,0.00016282,2]
[399743518,1766652646706,-150.0,0.00016283,2]
[399743519,1766652646716,-172.12623375,0.00016283,2]
[399743520,1766652646726,-207.98052348,0.00016283,2]
[399743521,1766652646736,-299.35190735,0.00016283,2]
[399743522,1766652646746,-150.03943629,0.00016283,2]
[399743523,1766652646756,-150.0,0.00016292,2]
[399743524,1766652646766,-150.0,0.00016292,2]
[399743525,1766652646776,-172.12623375,0.000163,2]
[399743526,1766652646786,-207.98052348,0.000163,2]
[399743527,1766652646795,-299.35190735,0.000163,2]
[399743528,1766652646807,-150.03943629,0.000163,2]
[399743529,1766652646818,-150.0,0.00016307,2]
[399743530,1766652646828,-150.0,0.00016307,2]
[399743531,1766652646838,-150.0,0.00016311,2]
[399743532,1766652646848,-150.0,0.00016316,2]
[399743533,1766652646858,-172.12623375,0.00016317,2]
[399743534,1766652646867,-207.98052348,0.00016317,2]
[399743535,1766652646877,-299.35190735,0.00016317,2]
[399743536,1766652646887,-150.03943629,0.00016317,2]
[399743537,1766652646897,-150.0,0.00016329,2]
[399743538,1766652646907,-150.0,0.00016331,2]
[399743539,1766652646918,-150.0,0.00016333,2]
[399743540,1766652646927,-172.12623375,0.00016334,2]
[399743541,1766652646938,-207.98052348,0.00016334,2]
[399743542,1766652646948,-299.35190735,0.00016334,2]
[399743543,1766652646958,-150.03943629,0.00016334,2]
[399743544,1766652646969,-150.0,0.0001634,2]
[399743545,1766652646979,-150.0,0.00016347,2]
[399743546,1766652646989,-150.0,0.00016349,2]
[399743547,1766652646999,-150.0,0.00016349,2]
[399743548,1766652647009,-172.12623375,0.00016351,2]
[399743549,1766652647019,-207.98052348,0.00016351,2]
[399743550,1766652647029,-299.35190735,0.00016351,2]
[399743551,1766652647039,-150.03943629,0.00016351,2]
[399743552,1766652647049,-150.0,0.00016355,2]
[399743553,1766652647059,-150.0,0.0001636,2]
[399743554,1766652647069,-150.0,0.00016364,2]
[399743555,1766652647079,-150.0,0.00016365,2]
[399743556,1766652647089,-172.12623375,0.00016369,2]
[399743557,1766652647099,-207.98052348,0.00016369,2]
[399743558,1766652647112,-299.35190735,0.00016369,2]
[399743559,1766652647123,-150.03943629,0.00016369,2]
[399743560,1766652647141,-150.0,0.0001638,2]
[399743561,1766652647152,-194.0,0.00016384,2]
[399743562,1766652647162,-150.0,0.00016384,2]
[399743563,1766652647171,-172.12623375,0.00016386,2]
[399743564,1766652647182,-207.98052348,0.00016386,2]
[399743565,1766652647193,-299.35190735,0.00016386,2]
[399743566,1766652647203,-150.03943629,0.00016386,2]
[399743567,1766652647213,-150.0,0.00016388,2]
[399743568,1766652647224,-150.0,0.00016392,2]
[399743569,1766652647234,-150.0,0.00016398,2]
[399743570,1766652647244,-150.0,0.00016402,2]
[399743571,1766652647254,-172.12623375,0.00016403,2]
[399743572,1766652647264,-207.98052348,0.00016403,2]
[399743573,1766652647274,-299.35190735,0.00016403,2]
[399743574,1766652647284,-150.03943629,0.00016403,2]
[399743575,1766652647294,-150.0,0.00016404,2]
[399743576,1766652647303,-150.0,0.00016412,2]
[399743577,1766652647313,-172.12623375,0.0001642,2]
[399743578,1766652647323,-207.98052348,0.0001642,2]
[399743579,1766652647334,-150.0,0.0001642,2]
[399743580,1766652647344,-299.35190735,0.0001642,2]
[399743581,1766652647353,-150.0,0.0001642,2]
[399743582,1766652647363,-150.0,0.0001642,2]
[399743583,1766652647372,-150.03943629,0.0001642,2]
[399743584,1766652647383,-150.0,0.0001642,2]
[399743585,1766652647393,-150.0,0.00016428,2]
[399743586,1766652647404,-150.0,0.00016434,2]
[399743587,1766652647415,-150.0,0.00016436,2]
[399743588,1766652647426,-172.12623375,0.00016437,2]
[399743589,1766652647437,-207.98052348,0.00016437,2]
[399743590,1766652647447,-299.35190735,0.00016437,2]
[399743591,1766652647457,-150.03943629,0.00016437,2]
[399743592,1766652647467,-256.03972968,0.00016438,2]
[399743593,1766652647478,-11296.91,0.00016438,2]
[399743594,1766652647487,-626.04,0.00016438,2]
[399743595,1766652647496,-150.0,0.00016438,2]
[399743596,1766652647506,-164.98,0.0001644,2]
[399743597,1766652647516,-150.0,0.0001645,2]
[399743598,1766652647526,-150.0,0.00016452,2]
[399743599,1766652647539,-172.12623375,0.00016454,2]
[399743600,1766652647556,-207.98052348,0.00016454,2]
[399743601,1766652647576,-299.35190735,0.00016454,2]
[399743602,1766652647586,-150.03943629,0.00016454,2]
[399743603,1766652647597,-150.0,0.00016457,2]
[399743604,1766652647607,-150.0,0.0001646,2]
[399743605,1766652647617,-150.0,0.00016464,2]
[399743606,1766652647627,-172.12623375,0.00016472,2]
[399743607,1766652647638,-207.98052348,0.00016472,2]
[399743608,1766652647648,-299.35190735,0.00016472,2]
[399743609,1766652647658,-150.03943629,0.00016472,2]
[399743610,1766652647668,-150.0,0.00016475,2]
[399743611,1766652647678,-150.0,0.00016477,2]
[399743612,1766652647688,-150.0,0.00016477,2]
[399743613,1766652647698,-150.0,0.00016484,2]
[399743614,1766652647708,-172.12623375,0.00016489,2]
[399743615,1766652647718,-207.98052348,0.00016489,2]
[399743616,1766652647729,-299.35190735,0.00016489,2]
[399743617,1766652647739,-150.03943629,0.00016489,2]
[399743618,1766652647750,-150.0,0.00016491,2]
[399743619,1766652647759,-150.0,0.00016493,2]
[399743620,1766652647769,-150.0,0.00016501,2]
[399743621,1766652647779,-172.12623375,0.00016506,2]
[399743622,1766652647789,-207.98052348,0.00016506,2]
[399743623,1766652647799,-299.35190735,0.00016506,2]
[399743624,1766652647812,-150.03943629,0.00016506,2]
[399743625,1766652647823,-150.0,0.00016508,2]
[399743626,1766652647833,-150.0,0.00016511,2]
[399743627,1766652647843,-509.0,0.00016513,2]
[399743628,1766652647854,-150.0,0.00016519,2]
[399743629,1766652647864,-172.12623375,0.00016523,2]
[399743630,1766652647874,-207.98052348,0.00016523,2]
[399743631,1766652647885,-299.35190735,0.00016523,2]
[399743632,1766652647895,-150.03943629,0.00016523,2]
[399743633,1766652647905,-150.0,0.00016525,2]
[399743634,1766652647915,-166.66,0.00016528,2]
[399743635,1766652647925,-150.0,0.00016529,2]
[399743636,1766652647935,-150.0,0.0001653,2]
[399743637,1766652647944,-150.0,0.00016532,2]
[399743638,1766652647954,-150.0,0.00016539,2]
[399743639,1766652647963,-172.12623375,0.0001654,2]
[399743640,1766652647973,-207.98052348,0.0001654,2]
[399743641,1766652647983,-299.35190735,0.0001654,2]
[399743642,1766652647993,-150.03943629,0.0001654,2]
[399743643,1766652648003,-150.0,0.00016548,2]
[399743644,1766652648013,-150.0,0.0001655,2]
[399743645,1766652648023,-150.0,0.00016556,2]
[399743646,1766652648110,-172.12623375,0.00016557,2]
[399743647,1766652648120,-207.98052348,0.00016557,2]
[399743648,1766652648130,-299.35190735,0.00016557,2]
[399743649,1766652648141,-150.03943629,0.00016557,2]
[399743650,1766652648154,-150.0,0.00016562,2]
[399743651,1766652648164,-150.0,0.00016562,2]
[399743652,1766652648175,-150.0,0.00016562,2]
[399743653,1766652648185,-150.0,0.00016566,2]
[399743654,1766652648195,-150.0,0.00016574,2]
[399743655,1766652648206,-172.12623375,0.00016575,2]
[399743656,1766652648216,-207.98052348,0.00016575,2]
[399743657,1766652648226,-299.35190735,0.00016575,2]
[399743658,1766652648237,-150.03943629,0.00016575,2]
[399743659,1766652648248,-150.0,0.0001658,2]
[399743660,1766652648259,-150.0,0.00016584,2]
[399743661,1766652648269,-172.12623375,0.00016592,2]
[399743662,1766652648279,-207.98052348,0.00016592,2]
[399743663,1766652648289,-299.35190735,0.00016592,2]
[399743664,1766652648299,-150.03943629,0.00016592,2]
[399743665,1766652648309,-150.0,0.00016594,2]
[399743666,1766652648320,-165.23,0.00016596,2]
[399743667,1766652648330,-150.0,0.00016598,2]
[399743668,1766652648339,-150.0,0.00016603,2]
[399743669,1766652648349,-150.0,0.00016604,2]
[399743670,1766652648358,-150.0,0.00016604,2]
[399743671,1766652648368,-172.12623375,0.00016609,2]
[399743672,1766652648379,-207.98052348,0.00016609,2]
[399743673,1766652648388,-299.35190735,0.00016609,2]
[399743674,1766652648397,-150.0,0.00016609,2]
[399743675,1766652648407,-150.03943629,0.00016609,2]
[399743676,1766652648417,-150.0,0.00016621,2]
[399743677,1766652648426,-150.0,0.00016622,2]
[399743678,1766652648436,-172.12623375,0.00016626,2]
[399743679,1766652648446,-207.98052348,0.00016626,2]
[399743680,1766652648455,-299.35190735,0.00016626,2]
[399743681,1766652648465,-150.03943629,0.00016626,2]
[399743682,1766652648475,-150.0,0.00016627,2]
[399743683,1766652648484,-150.0,0.00016629,2]
[399743684,1766652648494,-150.0,0.00016632,2]
[399743685,1766652648503,-150.0,0.00016639,2]
[399743686,1766652648514,-172.12623375,0.00016643,2]
[399743687,1766652648523,-207.98052348,0.00016643,2]
[399743688,1766652648533,-299.35190735,0.00016643,2]
[399743689,1766652648543,-150.03943629,0.00016643,2]
[399743690,1766652648554,-150.0,0.00016647,2]
[399743691,1766652648563,-150.0,0.00016647,2]
[399743692,1766652648574,-150.0,0.00016651,2]
[399743693,1766652648584,-150.0,0.00016658,2]
[399743694,1766652648594,-150.0,0.0001666,2]
[399743695,1766652648604,-172.12623375,0.0001666,2]
[399743696,1766652648614,-207.98052348,0.0001666,2]
[399743697,1766652648624,-299.35190735,0.0001666,2]
[399743698,1766652648633,-150.03943629,0.0001666,2]
[399743699,1766652648644,-150.0,0.00016671,2]
[399743700,1766652648654,-150.0,0.00016675,2]
[399743701,1766652648664,-150.0,0.00016676,2]
[399743702,1766652648675,-172.12623375,0.00016677,2]
[399743703,1766652648685,-207.98052348,0.00016677,2]
[399743704,1766652648695,-299.35190735,0.00016677,2]
[399743705,1766652648705,-150.03943629,0.00016677,2]
[399743706,1766652648714,-150.0,0.00016689,2]
[399743707,1766652648731,-150.0,0.00016694,2]
[399743708,1766652648741,-172.12623375,0.00016695,2]
[399743709,1766652648751,-207.98052348,0.00016695,2]
[399743710,1766652648760,-299.35190735,0.00016695,2]
[399743711,1766652648770,-150.03943629,0.00016695,2]
[399743712,1766652648779,-150.0,0.00016695,2]
[399743713,1766652648789,-500.0,0.00016699,2]
[399743714,1766652648798,-500.0,0.00016699,2]
[399743715,1766652648812,-150.0,0.00016699,2]
[399743716,1766652648822,-187.27787589,0.00016699,2]
[399743717,1766652648831,-500.0,0.00016699,2]
[399743718,1766652648841,-150.0,0.00016699,2]
[399743719,1766652648851,-206.58520274,0.00016699,2]
[399743720,1766652648860,-500.0,0.00016699,2]
[399743721,1766652648870,-209.54901978,0.00016699,2]
[399743722,1766652648879,-500.0,0.00016699,2]
[399743723,1766652648889,-183.77130644,0.00016699,2]
[399743724,1766652648898,-150.0,0.00016699,2]
[399743725,1766652648907,-500.0,0.00016699,2]
[399743726,1766652648917,-500.0,0.00016699,2]
[399743727,1766652648927,-500.0,0.00016699,2]
[399743728,1766652648937,-150.0,0.00016699,2]
[399743729,1766652648947,-150.0,0.00016703,2]
[399743730,1766652648957,-150.0,0.00016703,2]
[399743731,1766652648967,-172.12623375,0.00016712,2]
[399743732,1766652648977,-207.98052348,0.00016712,2]
[399743733,1766652648987,-299.35190735,0.00016712,2]
[399743734,1766652648996,-150.03943629,0.00016712,2]
[399743735,1766652649006,-150.0,0.00016712,2]
[399743736,1766652649016,-150.0,0.00016718,2]
[399743737,1766652649026,-150.0,0.00016719,2]
[399743738,1766652649035,-150.0,0.00016723,2]
[399743739,1766652649045,-150.0,0.00016725,2]
[399743740,1766652649055,-500.0,0.00016726,2]
[399743741,1766652649065,-620.76763019,0.00016726,2]
[399743742,1766652649075,-209.80705324,0.00016726,2]
[399743743,1766652649084,-500.0,0.00016726,2]
[399743744,1766652649093,-257.86837201,0.00016726,2]
[399743745,1766652649103,-500.0,0.00016726,2]
[399743746,1766652649113,-500.0,0.00016726,2]
[399743747,1766652649122,-150.0,0.00016726,2]
[399743748,1766652649132,-500.0,0.00016726,2]
[399743749,1766652649142,-500.0,0.00016726,2]
[399743750,1766652649151,-500.0,0.00016726,2]
[399743751,1766652649161,-172.12623375,0.00016729,2]
[399743752,1766652649173,-207.98052348,0.00016729,2]
[399743753,1766652649183,-299.35190735,0.00016729,2]
[399743754,1766652649194,-150.03943629,0.00016729,2]
[399743755,1766652649207,-150.0,0.00016731,2]
[399743756,1766652649217,-150.0,0.00016732,2]
[399743757,1766652649227,-150.0,0.00016744,2]
[399743758,1766652649237,-172.12623375,0.00016746,2]
[399743759,1766652649248,-207.98052348,0.00016746,2]
[399743760,1766652649258,-299.35190735,0.00016746,2]
[399743761,1766652649269,-150.03943629,0.00016746,2]
[399743762,1766652649278,-150.0,0.00016747,2]
[399743763,1766652649288,-150.0,0.00016749,2]
[399743764,1766652649298,-500.0,0.00016754,2]
[399743765,1766652649308,-500.0,0.00016754,2]
[399743766,1766652649318,-500.0,0.00016754,2]
[399743767,1766652649328,-500.0,0.00016754,2]
[399743768,1766652649337,-500.0,0.00016754,2]
[399743769,1766652649347,-500.0,0.00016754,2]
[399743770,1766652649357,-164.67458914,0.00016754,2]
[399743771,1766652649367,-181.0,0.00016759,2]
[399743772,1766652649378,-172.12623375,0.00016763,2]
[399743773,1766652649387,-207.98052348,0.00016763,2]
[399743774,1766652649396,-299.35190735,0.00016763,2]
[399743775,1766652649405,-150.03943629,0.00016763,2]
[399743776,1766652649414,-150.0,0.00016767,2]
[399743777,1766652649424,-150.0,0.00016768,2]
[399743778,1766652649434,-150.0,0.00016771,2]
[399743779,1766652649444,-150.0,0.00016774,2]
[399743780,1766652649453,-150.0,0.00016774,2]
[399743781,1766652649463,-172.12623375,0.0001678,2]
[399743782,1766652649473,-207.98052348,0.0001678,2]
[399743783,1766652649483,-299.35190735,0.0001678,2]
[399743784,1766652649492,-150.03943629,0.0001678,2]
[399743785,1766652649502,-500.0,0.00016781,2]
[399743786,1766652649512,-500.0,0.00016781,2]
[399743787,1766652649521,-500.0,0.00016781,2]
[399743788,1766652649531,-500.0,0.00016781,2]
[399743789,1766652649540,-500.0,0.00016781,2]
[399743790,1766652649551,-500.0,0.00016781,2]
[399743791,1766652649561,-150.0,0.00016785,2]
[399743792,1766652649571,-150.0,0.0001679,2]
[399743793,1766652649581,-150.0,0.00016792,2]
[399743794,1766652649591,-150.0,0.00016795,2]
[399743795,1766652649600,-172.12623375,0.00016798,2]
[399743796,1766652649610,-207.98052348,0.00016798,2]
[399743797,1766652649619,-299.35190735,0.00016798,2]
[399743798,1766652649630,-150.0,0.00016798,2]
[399743799,1766652649639,-150.03943629,0.00016798,2]
[399743800,1766652649649,-150.0,0.00016804,2]
[399743801,1766652649659,-150.0,0.00016807,2]
[399743802,1766652649669,-500.0,0.00016809,2]
[399743803,1766652649678,-500.0,0.00016809,2]
[399743804,1766652649687,-500.0,0.00016809,2]
[399743805,1766652649697,-252.2515866,0.00016809,2]
[399743806,1766652649706,-500.0,0.00016809,2]
[399743807,1766652649716,-172.12623375,0.00016815,2]
[399743808,1766652649725,-207.98052348,0.00016815,2]
[399743809,1766652649735,-299.35190735,0.00016815,2]
[399743810,1766652649745,-150.03943629,0.00016815,2]
[399743811,1766652649755,-150.0,0.00016816,2]
[399743812,1766652649765,-150.0,0.00016816,2]
[399743813,1766652649776,-150.0,0.00016819,2]
[399743814,1766652649786,-150.0,0.00016822,2]
[399743815,1766652649795,-172.12623375,0.00016832,2]
[399743816,1766652649807,-207.98052348,0.00016832,2]
[399743817,1766652649817,-299.35190735,0.00016832,2]
[399743818,1766652649828,-150.03943629,0.00016832,2]
[399743819,1766652649838,-500.0,0.00016836,2]
[399743820,1766652649848,-500.0,0.00016836,2]
[399743821,1766652649858,-500.0,0.00016836,2]
[399743822,1766652649868,-500.0,0.00016836,2]
[399743823,1766652649879,-150.0,0.0001684,2]
[399743824,1766652649889,-150.0,0.00016841,2]
[399743825,1766652649899,-150.0,0.00016843,2]
[399743826,1766652649908,-150.0,0.00016845,2]
[399743827,1766652649918,-172.12623375,0.00016849,2]
[399743828,1766652649927,-207.98052348,0.00016849,2]
[399743829,1766652649937,-299.35190735,0.00016849,2]
[399743830,1766652649946,-150.03943629,0.00016849,2]
[399743831,1766652649957,-150.0,0.00016856,2]
[399743832,1766652649966,-150.0,0.00016858,2]
[399743833,1766652649976,-150.0,0.00016859,2]
[399743834,1766652649985,-500.0,0.00016863,2]
[399743835,1766652649995,-500.0,0.00016863,2]
[399743836,1766652650004,-500.0,0.00016863,2]
[399743837,1766652650014,-150.0,0.00016865,2]
[399743838,1766652650023,-172.12623375,0.00016866,2]
[399743839,1766652650032,-207.98052348,0.00016866,2]
[399743840,1766652650042,-299.35190735,0.00016866,2]
[399743841,1766652650051,-150.03943629,0.00016866,2]
[399743842,1766652650061,-150.0,0.00016867,2]
[399743843,1766652650071,-150.0,0.00016877,2]
[399743844,1766652650080,-172.12623375,0.00016883,2]
[399743845,1766652650089,-207.98052348,0.00016883,2]
[399743846,1766652650099,-299.35190735,0.00016883,2]
[399743847,1766652650108,-150.03943629,0.00016883,2]
[399743848,1766652650118,-150.0,0.00016889,2]
[399743849,1766652650128,-150.0,0.00016891,2]
[399743850,1766652650138,-500.0,0.00016891,2]
[399743851,1766652650148,-500.0,0.00016891,2]
[399743852,1766652650157,-500.0,0.00016891,2]
[399743853,1766652650168,-150.0,0.00016895,2]
[399743854,1766652650177,-150.0,0.00016897,2]
[399743855,1766652650187,-1000.0,0.000169,2]
[399743856,1766652650198,-10000.0,0.000169,2]
[399743857,1766652650207,-1151.5825063,0.000169,2]
[399743858,1766652650217,-8491.85784414,0.000169,2]
[399743859,1766652650227,-199.75415694,0.000169,2]
[399743860,1766652650237,-11533.86214268,0.000169,2]
[399743861,1766652650246,-172.12623375,0.00016901,2]
[399743862,1766652650256,-207.98052348,0.00016901,2]
[399743863,1766652650267,-299.35190735,0.00016901,2]
[399743864,1766652650277,-150.03943629,0.00016901,2]
[399743865,1766652650287,-150.0,0.00016901,2]
[399743866,1766652650297,-150.0,0.00016913,2]
[399743867,1766652650306,-150.0,0.00016914,2]
[399743868,1766652650316,-150.0,0.00016915,2]
[399743869,1766652650326,-150.0,0.00016916,2]
[399743870,1766652650336,-172.12623375,0.00016918,2]
[399743871,1766652650345,-207.98052348,0.00016918,2]
[399743872,1766652650355,-299.35190735,0.00016918,2]
[399743873,1766652650365,-150.03943629,0.00016918,2]
[399743874,1766652650375,-500.0,0.00016918,2]
[399743875,1766652650384,-500.0,0.00016918,2]
[399743876,1766652650393,-500.0,0.00016918,2]
[399743877,1766652650403,-150.0,0.00016921,2]
[399743878,1766652650413,-150.0,0.00016932,2]
[399743879,1766652650422,-172.12623375,0.00016935,2]
[399743880,1766652650432,-207.98052348,0.00016935,2]
[399743881,1766652650442,-299.35190735,0.00016935,2]
[399743882,1766652650451,-150.03943629,0.00016935,2]
[399743883,1766652650460,-150.0,0.00016938,2]
[399743884,1766652650471,-150.0,0.00016938,2]
[399743885,1766652650480,-150.0,0.00016944,2]
[399743886,1766652650490,-500.0,0.00016946,2]
[399743887,1766652650500,-500.0,0.00016946,2]
[399743888,1766652650509,-512.55809121,0.00016946,2]
[399743889,1766652650519,-150.0,0.0001695,2]
[399743890,1766652650529,-172.12623375,0.00016952,2]
[399743891,1766652650539,-207.98052348,0.00016952,2]
[399743892,1766652650549,-299.35190735,0.00016952,2]
[399743893,1766652650559,-150.03943629,0.00016952,2]
[399743894,1766652650569,-177.99381542,0.00016959,2]
[399743895,1766652650579,-150.0,0.00016962,2]
[399743896,1766652650589,-150.0,0.00016962,2]
[399743897,1766652650599,-150.0,0.00016968,2]
[399743898,1766652650609,-172.12623375,0.00016969,2]
[399743899,1766652650618,-207.98052348,0.00016969,2]
[399743900,1766652650628,-299.35190735,0.00016969,2]
[399743901,1766652650638,-150.03943629,0.00016969,2]
[399743902,1766652650648,-501.7326664,0.00016973,2]
[399743903,1766652650657,-500.0,0.00016973,2]
[399743904,1766652650667,-500.0,0.00016973,2]
[399743905,1766652650676,-500.0,0.00016973,2]
[399743906,1766652650686,-500.0,0.00016973,2]
[399743907,1766652650695,-500.0,0.00016973,2]
[399743908,1766652650705,-500.0,0.00016973,2]
[399743909,1766652650715,-500.0,0.00016973,2]
[399743910,1766652650725,-500.0,0.00016973,2]
[399743911,1766652650735,-500.0,0.00016973,2]
[399743912,1766652650744,-150.0,0.00016973,2]
[399743913,1766652650754,-150.0,0.00016973,2]
[399743914,1766652650764,-576.8,0.00016986,2]
[399743915,1766652650774,-183.38649304,0.00016986,2]
[399743916,1766652650784,-178.95978475,0.00016986,2]
[399743917,1766652650793,-172.12623375,0.00016986,2]
[399743918,1766652650804,-207.98052348,0.00016986,2]
[399743919,1766652650815,-216.83783771,0.00016986,2]
[399743920,1766652650825,-189.4339465,0.00016986,2]
[399743921,1766652650834,-299.35190735,0.00016986,2]
[399743922,1766652650843,-247.20495061,0.00016986,2]
[399743923,1766652650854,-193.50552158,0.00016986,2]
[399743924,1766652650864,-165.80661735,0.00016986,2]
[399743925,1766652650874,-150.03943629,0.00016986,2]
[399743926,1766652650885,-226.51547487,0.00016986,2]
[399743927,1766652650895,-268.64849999,0.00016986,2]
[399743928,1766652650904,-167.35024843,0.00016986,2]
[399743929,1766652650914,-162.14613951,0.00016986,2]
[399743930,1766652650923,-238.98995802,0.00016986,2]
[399743931,1766652650933,-500.0,0.00016999,2]
[399743932,1766652650943,-500.0,0.00016999,2]
[399743933,1766652650953,-500.0,0.00016999,2]
[399743934,1766652650962,-500.0,0.00016999,2]
[399743935,1766652650972,-500.0,0.00016999,2]
[399743936,1766652650981,-451.48949058,0.00016999,2]
[399743937,1766652650990,-300.0,0.00016999,2]
[399743938,1766652651000,-300.0,0.00016999,2]
[399743939,1766652651010,-4358949.66983641,0.00017,2]
[399743940,1766652651322,-448.45149999,0.00017,2]
[399743941,1766652651545,-151.0,0.00014987,2]
[399743942,1766652651554,-840.64897238,0.000169,2]
[399743943,1766652651564,-18082.38052045,0.00017,2]
[399743944,1766652763450,1076.4615,0.00011242,2]
[399743945,1766652779087,8923.5485,0.00011242,2]
[399743946,1766652779113,10000.01,0.00011242,2]
[399743947,1766652779139,10000.01,0.00011242,2]
[399743948,1766652779166,10000.01,0.00011242,2]
[399743949,1766652779192,10000.01,0.00011242,2]
[399743950,1766652779220,10000.01,0.00011242,2]
[399743951,1766652780044,-367.72996418,0.00011242,2]
[399743952,1766652782678,-153.83026447,0.00011242,2]
[399743953,1766652785169,-161.74145524,0.00011242,2]
[399743954,1766652791063,-179.0,0.00011241,2]
[399743955,1766652791090,-10.50786179,0.00011242,2]
[399743956,1766652796781,-258.41362041,0.00011242,2]
[399743957,1766652798343,-222.5891991,0.00011242,2]
[399743958,1766652800092,-175.29251551,0.00011242,2]
[399743959,1766652802519,-272.2805468,0.00011242,2]
[399743960,1766652803989,-403.50834349,0.00011242,2]
[399743961,1766652805556,-388.94170341,0.00011242,2]
[399743962,1766652807185,-401.1300218,0.00011242,2]
[399743963,1766652810521,-206.90531502,0.00011242,2]
[399743964,1766652812221,-357.5545614,0.00011242,2]
[399743965,1766652814929,-154.38211696,0.00011242,2]
[399743966,1766652817535,-424.23855293,0.00011242,2]
[399743967,1766652820378,-300.0,0.00011242,2]
[399743968,1766652822427,-162.29359023,0.00011242,2]
[399743969,1766652824487,-157.34151707,0.00011242,2]
[399743970,1766652825977,-480.3648927,0.00011242,2]
[399743971,1766652831925,-200.0,0.00011185,2]
[399743972,1766652833926,-190.98553824,0.00011185,2]
[399743973,1766652837816,-152.98600147,0.00011142,2]
[399743974,1766652837839,-69.35829568,0.00011185,2]
[399743975,1766652839425,-249.0266582,0.00011185,2]
[399743976,1766652842167,-199.89974915,0.00011185,2]
[399743977,1766652844228,-204.56319278,0.00011185,2]
[399743978,1766652845787,-279.67423165,0.00011185,2]
[399743979,1766652850788,-269.69195794,0.00011185,2]
[399743980,1766652852265,-506.38792151,0.00011185,2]
[399743981,1766652855609,-193.94170341,0.00011185,2]
[399743982,1766652858761,-316.06768111,0.00011185,2]
[399743983,1766652860513,-161.40101433,0.00011185,2]
[399743984,1766652860541,-1.78198901,0.00011242,2]
[399743985,1766652863575,-199.46758615,0.00011242,2]
[399743986,1766652865636,-296.40985861,0.00011242,2]
[399743987,1766652868995,-622.49656919,0.00011242,2]
[399743988,1766652871752,-236.26317538,0.00011242,2]
[399743989,1766652873936,-197.31864386,0.00011242,2]
[399743990,1766652875085,6621.0,0.0002,30]
[399743991,1766652876756,-442.46819843,0.00011242,2]
[399743992,1766652878934,-395.91119921,0.00011242,2]
[399743993,1766652881480,-210.46176332,0.00011242,2]
[399743994,1766652884953,-181.12675976,0.00011142,2]
[399743995,1766652886498,6000.0,0.0002,30]
[399743996,1766652886534,-156.90710145,0.00011142,2]
[399743997,1766652890250,-207.4122511,0.00011142,2]
[399743998,1766652891851,-184.60791368,0.00011142,2]
[399743999,1766652893372,-173.30744831,0.00011142,2]
[399744000,1766652895470,-177.37145397,0.00011142,2]
[399744001,1766652898122,-175.91912486,0.00011142,2]
[399744002,1766652900254,-192.91252436,0.00011142,2]
[399744004,1766652984391,-384.02457248,0.00011142,2]
[399744005,1766652985845,-473.08,0.00011142,2]
[399744006,1766652989171,-200.0,0.00011142,2]
[399744007,1766652990722,-264.84966531,0.00011142,2]